[Event "Niedersachsen-ch B 2024"]
[Site "Verden Aller"]
[Date "2024.01.06"]
[Round "5.17"]
[White "Frowein, Ernst Holger"]
[Black "Balazs, Kata"]
[Result "0-1"]
[ECO "B01"]
[WhiteElo "1755"]
[BlackElo "1723"]
[Annotator "NA RC"]
[PlyCount "82"]
[EventDate "2024.01.01"]
[EventType "swiss"]
[EventCountry "GER"]
[SourceTitle "playchess.com"]
[Source "ChessBase"]
[SourceQuality "1"]
[TimeControl "40/5400+30:1800+30"]

1. e4 {[%emt 0:00:04]} d5 {[%emt 0:00:05]} 2. exd5 {[%emt 0:00:12]} Qxd5 {[%emt 0:00:05]} 3. Nc3 {[%emt 0:00:09]} Qa5 {[%emt 0:00:05]} 4. d4 {[%emt 0:00:06]} Nf6 {[%emt 0:00:07]} 5. Nf3 {[%emt 0:00:26]} Bg4 {[%emt 0:00:17]} 6. Be2 {[%emt 0:01:03]} Nc6 {[%emt 0:03:54]} 7. O-O {[%emt 0:01:44]} O-O-O {[%emt 0:02:07]} 8. Be3 {[%emt 0:14:08]} e5 {[%emt 0:04:11]} 9. d5 {[%emt 0:08:11]} Bxf3 {[%emt 0:25:46]} 10. Bxf3 {[%emt 0:00:33]} Nb4 {[%emt 0:01:54]} 11. Bd2 {[%emt 0:09:52]} Qb6 {[%emt 0:09:27]} 12. Na4 {[%emt 0:01:50]} Qa6 {[%emt 0:02:11]} 13. c3 {[%emt 0:10:07]} Nbxd5 {[%emt 0:02:07]} 14. Qb3 {[%emt 0:00:41]} e4 {[%emt 0:05:20]} 15. Bd1 {[%emt 0:00:05]} Bd6 {[%emt 0:04:45]} 16. c4 {[%emt 0:02:08]} Nb6 {[%emt 0:01:55]} 17. Nxb6+ {[%emt 0:11:23]} Qxb6 {[%emt 0:00:12]} 18. Qc3 {[%emt 0:03:19]} Bc5 {[%emt 0:01:55]} 19. Be2 {[%emt 0:04:46]} Rhe8 {[%emt 0:02:35]} 20. Be3 {[%emt 0:04:52]} Bxe3 {[%emt 0:01:03]} 21. fxe3 {[%emt 0:00:06]} Re7 {[%emt 0:07:49]} 22. Rad1 {[%emt 0:03:02]} Red7 {[%emt 0:00:55]} 23. Rxd7 {[%emt 0:03:12]} Rxd7 {[%emt 0:00:08]} 24. c5 {[%emt 0:03:51]} Qe6 {[%emt 0:01:43]} 25. b4 {[%emt 0:02:09]} Kd8 {[%emt 0:11:47]} 26. h3 {[%emt 0:01:21]} Qxa2 {[%emt 0:01:12]} 27. Bc4 {[%emt 0:06:57]} Qd2 {[%emt 0:01:10]} 28. Qb3 {[%emt 0:01:11]} Ke8 {[%emt 0:04:14]} 29. b5 {[%emt 0:00:51]} Nd5 {[%emt 0:02:55]} 30. c6 {[%emt 0:00:20]} bxc6 {[%emt 0:00:30]} 31. bxc6 {[%emt 0:00:04]} Rd8 {[%emt 0:00:26]} 32. Rf2 {[%emt 0:01:38]} Qe1+ {[%emt 0:01:33]} 33. Rf1 {[%emt 0:00:32]} Qd2 {[%emt 0:00:46]} 34. Rf2 {[%emt 0:03:29]} Qe1+ {[%emt 0:00:42]} 35. Rf1 {[%emt 0:00:06]} Qxe3+ {[%emt 0:00:04]} 36. Kh1 {[%emt 0:01:29]} Qxb3 {[%emt 0:00:17]} 37. Bxb3 {[%emt 0:00:09]} f6 {[%emt 0:00:29]} 38. Bc2 {[%emt 0:00:31]} Ne3 {[%emt 0:00:31]} 39. Rc1 {[%emt 0:01:53]} Nxc2 {[%emt 0:00:08]} 40. Rxc2 {[%emt 0:00:04]} f5 {[%emt 0:00:36]} 41. Kg1 {[%emt 0:31:04]} f4 {[%emt 0:02:03]} 0-1

[Event "Niedersachsen-ch B 2024"]
[Site "Verden Aller"]
[Date "2024.01.06"]
[Round "5.19"]
[White "Direk, Oguzhan"]
[Black "Pfuhl, Lars"]
[Result "1-0"]
[ECO "D00"]
[WhiteElo "1657"]
[BlackElo "1530"]
[Annotator "NA RC"]
[PlyCount "41"]
[EventDate "2024.01.01"]
[EventType "swiss"]
[EventCountry "GER"]
[SourceTitle "playchess.com"]
[Source "ChessBase"]
[SourceQuality "1"]
[TimeControl "40/5400+30:1800+30"]

1. d4 {[%emt 0:00:58]} d5 {[%emt 0:00:12]} 2. Nc3 {[%emt 0:00:09]} Nf6 {[%emt 0:00:15]} 3. Bf4 {[%emt 0:00:07]} c5 {[%emt 0:00:20]} 4. e3 {[%emt 0:00:13]} Nc6 {[%emt 0:00:28]} 5. Nb5 {[%emt 0:00:20]} e5 {[%emt 0:02:34]} 6. Bxe5 {[%emt 0:00:17]} Nxe5 {[%emt 0:00:08]} 7. dxe5 {[%emt 0:00:05]} Qa5+ {[%emt 0:01:21]} 8. c3 {[%emt 0:01:33]} a6 {[%emt 0:01:01]} 9. exf6 {[%emt 0:01:48]} axb5 {[%emt 0:00:24]} 10. Qxd5 {[%emt 0:00:16]} Qb6 {[%emt 0:02:18]} 11. Qe5+ {[%emt 0:00:27]} Qe6 {[%emt 0:00:51]} 12. Bxb5+ {[%emt 0:00:37]} Bd7 {[%emt 0:00:36]} 13. Qxe6+ {[%emt 0:00:38]} fxe6 {[%emt 0:00:10]} 14. Bxd7+ {[%emt 0:00:06]} Kxd7 {[%emt 0:00:25]} 15. fxg7 {[%emt 0:00:09]} Bxg7 {[%emt 0:00:02]} 16. Nf3 {[%emt 0:00:24]} Ke7 {[%emt 0:01:04]} 17. Ke2 {[%emt 0:02:04]} Rhd8 {[%emt 0:00:55]} 18. a3 {[%emt 0:01:53]} Rd7 {[%emt 0:02:11]} 19. Rad1 {[%emt 0:00:13]} Rad8 {[%emt 0:00:06]} 20. Rxd7+ {[%emt 0:00:08]} Rxd7 {[%emt 0:00:03]} 21. Rd1 {[%emt 0:00:08]} 1-0

[Event "Niedersachsen-ch B 2024"]
[Site "Verden Aller"]
[Date "2024.01.06"]
[Round "5.20"]
[White "ter Stal, Esther"]
[Black "Krueger, Moritz"]
[Result "1-0"]
[ECO "C07"]
[WhiteElo "1486"]
[BlackElo "1607"]
[Annotator "NA RC"]
[PlyCount "66"]
[EventDate "2024.01.01"]
[EventType "swiss"]
[EventCountry "GER"]
[SourceTitle "playchess.com"]
[Source "ChessBase"]
[SourceQuality "1"]
[TimeControl "40/5400+30:1800+30"]

1. d4 {[%emt 0:01:12]} Nf6 {[%emt 0:00:08]} 2. Nf3 {[%emt 0:00:10]} d5 {[%emt 0:00:04]} 3. e3 {[%emt 0:00:13]} e6 {[%emt 0:00:08]} 4. Bd3 {[%emt 0:00:16]} c5 {[%emt 0:00:05]} 5. c3 {[%emt 0:00:08]} Nc6 {[%emt 0:00:04]} 6. O-O {[%emt 0:00:39]} a6 {[%emt 0:00:11]} 7. Nbd2 {[%emt 0:00:22]} Bd6 {[%emt 0:00:08]} 8. dxc5 {[%emt 0:01:29]} Bxc5 {[%emt 0:00:06]} 9. e4 {[%emt 0:03:01]} b5 {[%emt 0:00:23]} 10. Qe2 {[%emt 0:03:46]} Bb7 {[%emt 0:01:02]} 11. e5 {[%emt 0:14:15]} Nd7 {[%emt 0:00:06]} 12. Nb3 {[%emt 0:01:42]} Bb6 {[%emt 0:00:56]} 13. Bf4 {[%emt 0:05:41]} Rc8 {[%emt 0:03:11]} 14. Nbd4 {[%emt 0:07:44]} Nc5 {[%emt 0:00:49]} 15. Bc2 {[%emt 0:02:58]} Qd7 {[%emt 0:02:12]} 16. Ng5 {[%emt 0:04:29]} h6 {[%emt 0:00:06]} 17. Qh5 {[%emt 0:04:26]} Nxd4 {[%emt 0:00:14]} 18. Nxf7 {[%emt 0:15:48]} Ne2+ {[%emt 0:00:44]} 19. Qxe2 {[%emt 0:03:41]} Qxf7 {[%emt 0:00:46]} 20. Qg4 {[%emt 0:00:56]} g5 {[%emt 0:00:13]} 21. Be3 {[%emt 0:00:55]} Nd7 {[%emt 0:00:07]} 22. Bxb6 {[%emt 0:01:27]} Nxb6 {[%emt 0:00:05]} 23. f4 {[%emt 0:00:30]} Qe7 {[%emt 0:00:18]} 24. f5 {[%emt 0:02:37]} h5 {[%emt 0:01:11]} 25. Qg3 {[%emt 0:01:57]} h4 {[%emt 0:00:55]} 26. Qg4 {[%emt 0:00:13]} Rc4 {[%emt 0:00:09]} 27. Qe2 {[%emt 0:01:47]} Qc5+ {[%emt 0:00:26]} 28. Kh1 {[%emt 0:00:44]} d4 {[%emt 0:00:32]} 29. fxe6 {[%emt 0:01:16]} h3 {[%emt 0:00:41]} 30. Bg6+ {[%emt 0:02:06]} Kd8 {[%emt 0:00:07]} 31. Be4 {[%emt 0:04:17]} Bxe4 {[%emt 0:00:41]} 32. Qxe4 {[%emt 0:00:16]} Qd5 {[%emt 0:00:11]} 33. Qxd5+ {[%emt 0:02:05]} Nxd5 {[%emt 0:00:08]} 1-0

[Event "Niedersachsen-ch B 2024"]
[Site "Verden Aller"]
[Date "2024.01.06"]
[Round "5.21"]
[White "Ristedt, Mathis"]
[Black "Golke, Philipp"]
[Result "0-1"]
[ECO "D36"]
[WhiteElo "1601"]
[BlackElo "1490"]
[Annotator "NA RC"]
[PlyCount "68"]
[EventDate "2024.01.01"]
[EventType "swiss"]
[EventCountry "GER"]
[SourceTitle "playchess.com"]
[Source "ChessBase"]
[SourceQuality "1"]
[TimeControl "40/5400+30:1800+30"]

1. d4 {[%emt 0:00:02]} e6 {[%emt 0:00:11]} 2. c4 {[%emt 0:00:04]} d5 {[%emt 0:00:05]} 3. Nc3 {[%emt 0:00:05]} Nf6 {[%emt 0:00:06]} 4. Bg5 {[%emt 0:00:08]} Be7 {[%emt 0:00:30]} 5. e3 {[%emt 0:00:14]} O-O {[%emt 0:00:12]} 6. Nf3 {[%emt 0:00:06]} c6 {[%emt 0:00:07]} 7. Qc2 {[%emt 0:01:13]} Nbd7 {[%emt 0:02:11]} 8. Bd3 {[%emt 0:04:24]} h6 {[%emt 0:01:08]} 9. Bh4 {[%emt 0:01:07]} b6 {[%emt 0:00:10]} 10. cxd5 {[%emt 0:01:56]} exd5 {[%emt 0:02:02]} 11. Rc1 {[%emt 0:09:10]} Bb7 {[%emt 0:04:11]} 12. O-O {[%emt 0:03:06]} Rc8 {[%emt 0:07:49]} 13. h3 {[%emt 0:13:56]} Ne8 {[%emt 0:05:49]} 14. Bxe7 {[%emt 0:12:35]} Qxe7 {[%emt 0:00:27]} 15. Rfe1 {[%emt 0:17:40]} Nc7 {[%emt 0:06:21]} 16. Bf5 {[%emt 0:11:05]} g6 {[%emt 0:08:06]} 17. Bxd7 {[%emt 0:01:04]} Qxd7 {[%emt 0:00:05]} 18. Ne5 {[%emt 0:00:12]} Qd6 {[%emt 0:00:40]} 19. Ne2 {[%emt 0:04:43]} c5 {[%emt 0:04:21]} 20. Qa4 {[%emt 0:07:05]} a6 {[%emt 0:03:52]} 21. Qd7 {[%emt 0:02:01]} Qe6 {[%emt 0:03:50]} 22. Qxe6 {[%emt 0:00:39]} Nxe6 {[%emt 0:00:06]} 23. Nd7 {[%emt 0:00:15]} Rfd8 {[%emt 0:00:52]} 24. Nxb6 {[%emt 0:00:36]} Rc6 {[%emt 0:00:26]} 25. Na4 {[%emt 0:00:07]} cxd4 {[%emt 0:00:31]} 26. Nxd4 {[%emt 0:01:23]} Nxd4 {[%emt 0:00:16]} 27. exd4 {[%emt 0:00:07]} Rdc8 {[%emt 0:00:52]} 28. Nc5 {[%emt 0:00:33]} R8c7 {[%emt 0:02:11]} 29. Re8+ {[%emt 0:00:45]} Kg7 {[%emt 0:00:34]} 30. Rce1 {[%emt 0:00:44]} Bc8 {[%emt 0:01:14]} 31. R8e7 {[%emt 0:02:22]} Kf6 {[%emt 0:01:10]} 32. Rxc7 {[%emt 0:00:56]} Rxc7 {[%emt 0:00:09]} 33. Re5 {[%emt 0:01:07]} Rxc5 {[%emt 0:00:26]} 34. dxc5 {[%emt 0:00:28]} Kxe5 {[%emt 0:00:05]} 0-1

[Event "Niedersachsen-ch B 2024"]
[Site "Verden Aller"]
[Date "2024.01.06"]
[Round "5.22"]
[White "Knorr, Frank"]
[Black "Homann, Christoph"]
[Result "0-1"]
[ECO "C00"]
[WhiteElo "1411"]
[BlackElo "1597"]
[Annotator "NA RC"]
[PlyCount "98"]
[EventDate "2024.01.01"]
[EventType "swiss"]
[EventCountry "GER"]
[SourceTitle "playchess.com"]
[Source "ChessBase"]
[SourceQuality "1"]
[TimeControl "40/5400+30:1800+30"]

1. c4 {[%emt 0:00:09]} e6 {[%emt 0:00:52]} 2. e4 {[%emt 0:00:07]} d5 {[%emt 0:02:32]} 3. cxd5 {[%emt 0:00:14]} exd5 {[%emt 0:00:10]} 4. exd5 {[%emt 0:00:06]} Qxd5 {[%emt 0:01:30]} 5. Nc3 {[%emt 0:00:07]} Qa5 {[%emt 0:01:31]} 6. Nf3 {[%emt 0:00:56]} Nf6 {[%emt 0:00:37]} 7. Bc4 {[%emt 0:01:03]} Be7 {[%emt 0:02:43]} 8. O-O {[%emt 0:00:27]} O-O {[%emt 0:00:09]} 9. Re1 {[%emt 0:00:07]} Nc6 {[%emt 0:05:11]} 10. d4 {[%emt 0:00:36]} Bd6 {[%emt 0:05:27]} 11. d5 {[%emt 0:03:22]} Ne7 {[%emt 0:04:23]} 12. Bg5 {[%emt 0:15:09]} Bg4 {[%emt 0:00:43]} 13. Bxf6 {[%emt 0:01:28]} gxf6 {[%emt 0:00:27]} 14. a3 {[%emt 0:03:49]} Be5 {[%emt 0:06:24]} 15. Qd3 {[%emt 0:09:57]} Bf5 {[%emt 0:06:22]} 16. Ne4 {[%emt 0:09:54]} Bxb2 {[%emt 0:07:12]} 17. Rab1 {[%emt 0:00:48]} Qxa3 {[%emt 0:00:14]} 18. Qxa3 {[%emt 0:00:17]} Bxa3 {[%emt 0:00:04]} 19. Rxb7 {[%emt 0:01:04]} Bxe4 {[%emt 0:10:35]} 20. Rxe4 {[%emt 0:03:33]} Bd6 {[%emt 0:03:10]} 21. Re1 {[%emt 0:03:35]} a5 {[%emt 0:01:00]} 22. Ra1 {[%emt 0:01:21]} a4 {[%emt 0:00:36]} 23. Rb2 {[%emt 0:00:48]} a3 {[%emt 0:01:18]} 24. Rba2 {[%emt 0:00:12]} Ra5 {[%emt 0:00:20]} 25. Nd2 {[%emt 0:03:43]} Nxd5 {[%emt 0:00:27]} 26. Bxd5 {[%emt 0:02:03]} Rxd5 {[%emt 0:00:03]} 27. Ne4 {[%emt 0:00:17]} Be5 {[%emt 0:00:30]} 28. Rc1 {[%emt 0:06:20]} Rfd8 {[%emt 0:01:26]} 29. g3 {[%emt 0:08:04]} Rd1+ {[%emt 0:01:30]} 30. Rxd1 {[%emt 0:00:08]} Rxd1+ {[%emt 0:00:06]} 31. Kg2 {[%emt 0:00:05]} Bb2 {[%emt 0:00:19]} 32. Nc5 {[%emt 0:05:01]} Ra1 {[%emt 0:06:21]} 33. Rxa1 {[%emt 0:00:09]} Bxa1 {[%emt 0:00:08]} 34. Nb3 {[%emt 0:00:05]} Bb2 {[%emt 0:00:44]} 35. Kf3 {[%emt 0:00:28]} a2 {[%emt 0:00:18]} 36. Ke3 {[%emt 0:00:21]} a1=Q {[%emt 0:33:08]} 37. Nxa1 {[%emt 0:23:07]} Bxa1 {[%emt 0:00:00]} 38. Ke4 {[%emt 0:00:00]} Be5 {[%emt 0:00:00]} 39. f4 {[%emt 0:00:00]} Bd6 {[%emt 0:00:00]} 40. h4 {[%emt 0:00:00]} h5 {[%emt 0:00:00]} 41. Kd5 {[%emt 0:13:39]} Kg7 {[%emt 0:00:41]} 42. Kd4 {[%emt 0:01:04]} Kg6 {[%emt 0:00:11]} 43. Ke4 {[%emt 0:00:18]} f5+ {[%emt 0:01:02]} 44. Kd4 {[%emt 0:00:37]} Kf6 {[%emt 0:00:21]} 45. Kd5 {[%emt 0:00:07]} Ke7 {[%emt 0:00:20]} 46. Kd4 {[%emt 0:03:45]} Ke6 {[%emt 0:00:39]} 47. Kc4 {[%emt 0:00:43]} c5 {[%emt 0:00:48]} 48. Kc3 {[%emt 0:01:21]} Kd5 {[%emt 0:00:14]} 49. Kd3 {[%emt 0:00:12]} Bc7 {[%emt 0:32:14]} 0-1

[Event "Niedersachsen-ch B 2024"]
[Site "Verden Aller"]
[Date "2024.01.06"]
[Round "5.23"]
[White "Weist, Hartmut"]
[Black "Lieb, Max"]
[Result "1/2-1/2"]
[ECO "D02"]
[WhiteElo "1581"]
[BlackElo "1365"]
[Annotator "NA RC"]
[PlyCount "82"]
[EventDate "2024.01.01"]
[EventType "swiss"]
[EventCountry "GER"]
[SourceTitle "playchess.com"]
[Source "ChessBase"]
[SourceQuality "1"]
[TimeControl "40/5400+30:1800+30"]

1. Nf3 {[%emt 0:00:04]} d5 {[%emt 0:00:08]} 2. d4 {[%emt 0:00:08]} Nf6 {[%emt 0:00:11]} 3. Bf4 {[%emt 0:01:12]} c5 {[%emt 0:00:16]} 4. dxc5 {[%emt 0:01:40]} Nc6 {[%emt 0:00:49]} 5. Nc3 {[%emt 0:01:21]} e6 {[%emt 0:01:01]} 6. e3 {[%emt 0:02:40]} Bxc5 {[%emt 0:00:27]} 7. Nb5 {[%emt 0:03:18]} O-O {[%emt 0:05:59]} 8. c3 {[%emt 0:03:17]} a6 {[%emt 0:00:53]} 9. Nbd4 {[%emt 0:01:52]} Bd7 {[%emt 0:06:07]} 10. Bd3 {[%emt 0:02:59]} Rc8 {[%emt 0:01:32]} 11. Qc2 {[%emt 0:03:29]} Bxd4 {[%emt 0:01:23]} 12. exd4 {[%emt 0:01:32]} Nb4 {[%emt 0:00:22]} 13. Qd2 {[%emt 0:04:03]} Nxd3+ {[%emt 0:00:38]} 14. Qxd3 {[%emt 0:00:03]} Bb5 {[%emt 0:01:07]} 15. Qc2 {[%emt 0:03:33]} Ne4 {[%emt 0:03:04]} 16. Nd2 {[%emt 0:06:07]} Nd6 {[%emt 0:08:08]} 17. a4 {[%emt 0:01:25]} Be8 {[%emt 0:03:14]} 18. O-O {[%emt 0:01:25]} b5 {[%emt 0:00:39]} 19. Bxd6 {[%emt 0:03:20]} Qxd6 {[%emt 0:00:13]} 20. axb5 {[%emt 0:01:14]} axb5 {[%emt 0:00:54]} 21. Nb3 {[%emt 0:08:50]} b4 {[%emt 0:02:06]} 22. Nc5 {[%emt 0:04:37]} bxc3 {[%emt 0:01:54]} 23. bxc3 {[%emt 0:00:48]} Bd7 {[%emt 0:13:07]} 24. Ra6 {[%emt 0:09:25]} Bc6 {[%emt 0:03:09]} 25. Rb1 {[%emt 0:04:10]} Ra8 {[%emt 0:04:12]} 26. Rba1 {[%emt 0:02:19]} Rxa6 {[%emt 0:01:10]} 27. Rxa6 {[%emt 0:00:27]} Ra8 {[%emt 0:01:06]} 28. Qa2 {[%emt 0:02:22]} Qb8 {[%emt 0:02:28]} 29. Rxa8 {[%emt 0:01:37]} Qxa8 {[%emt 0:00:18]} 30. Qxa8+ {[%emt 0:00:59]} Bxa8 {[%emt 0:00:12]} 31. f4 {[%emt 0:00:09]} Kf8 {[%emt 0:01:29]} 32. Kf2 {[%emt 0:00:25]} Ke7 {[%emt 0:00:21]} 33. Ke3 {[%emt 0:00:24]} Kd6 {[%emt 0:00:27]} 34. g4 {[%emt 0:01:03]} f6 {[%emt 0:02:06]} 35. Nd3 {[%emt 0:02:33]} Bc6 {[%emt 0:00:59]} 36. h4 {[%emt 0:05:32]} Bb5 {[%emt 0:01:44]} 37. Nf2 {[%emt 0:01:36]} Bd7 {[%emt 0:04:36]} 38. Nd3 {[%emt 0:01:27]} Be8 {[%emt 0:15:18]} 39. Nf2 {[%emt 0:02:29]} h6 {[%emt 0:08:58]} 40. Nd3 {[%emt 0:04:38]} Bf7 {[%emt 0:01:43]} 41. Nb2 {[%emt 0:31:37]} e5 {[%emt 0:32:33]} 1/2-1/2

[Event "Niedersachsen-ch B 2024"]
[Site "Verden Aller"]
[Date "2024.01.06"]
[Round "5.24"]
[White "Zweck, Gerhard"]
[Black "Nordhorn, Horst"]
[Result "0-1"]
[ECO "B02"]
[WhiteElo "1414"]
[BlackElo "1696"]
[Annotator "NA RC"]
[PlyCount "86"]
[EventDate "2024.01.01"]
[EventType "swiss"]
[EventCountry "GER"]
[SourceTitle "playchess.com"]
[Source "ChessBase"]
[SourceQuality "1"]
[TimeControl "40/5400+30:1800+30"]

1. e4 {[%emt 0:00:04]} Nf6 {[%emt 0:00:34]} 2. e5 {[%emt 0:00:12]} Nd5 {[%emt 0:00:08]} 3. c4 {[%emt 0:00:50]} Nb6 {[%emt 0:00:05]} 4. Nc3 {[%emt 0:01:26]} c5 {[%emt 0:06:04]} 5. Nf3 {[%emt 0:02:07]} Nc6 {[%emt 0:01:23]} 6. b3 {[%emt 0:01:10]} g6 {[%emt 0:00:06]} 7. Ba3 {[%emt 0:03:22]} d6 {[%emt 0:00:12]} 8. exd6 {[%emt 0:02:30]} exd6 {[%emt 0:00:07]} 9. Bb2 {[%emt 0:03:06]} Bg7 {[%emt 0:00:08]} 10. Be2 {[%emt 0:05:38]} O-O {[%emt 0:02:13]} 11. O-O {[%emt 0:00:17]} d5 {[%emt 0:02:27]} 12. cxd5 {[%emt 0:04:54]} Nxd5 {[%emt 0:00:43]} 13. Na4 {[%emt 0:03:52]} Bxb2 {[%emt 0:01:03]} 14. Nxb2 {[%emt 0:00:02]} Qf6 {[%emt 0:00:26]} 15. Qc1 {[%emt 0:03:21]} Nd4 {[%emt 0:00:55]} 16. Nxd4 {[%emt 0:02:02]} Qxd4 {[%emt 0:00:12]} 17. Bf3 {[%emt 0:01:19]} Be6 {[%emt 0:08:41]} 18. Na4 {[%emt 0:05:30]} Rac8 {[%emt 0:00:27]} 19. Bxd5 {[%emt 0:01:53]} Bxd5 {[%emt 0:01:54]} 20. Qc3 {[%emt 0:08:34]} b5 {[%emt 0:04:26]} 21. Qxd4 {[%emt 0:03:17]} cxd4 {[%emt 0:00:12]} 22. Nb2 {[%emt 0:00:10]} Rc2 {[%emt 0:00:07]} 23. Nd3 {[%emt 0:06:36]} Rxd2 {[%emt 0:01:39]} 24. Nb4 {[%emt 0:00:05]} Bb7 {[%emt 0:00:12]} 25. Rfd1 {[%emt 0:00:53]} Rxd1+ {[%emt 0:00:08]} 26. Rxd1 {[%emt 0:00:03]} Rd8 {[%emt 0:00:13]} 27. Nc2 {[%emt 0:03:25]} d3 {[%emt 0:00:23]} 28. Na3 {[%emt 0:09:37]} a6 {[%emt 0:05:50]} 29. Rd2 {[%emt 0:00:35]} g5 {[%emt 0:00:10]} 30. f3 {[%emt 0:00:31]} f5 {[%emt 0:00:20]} 31. Kf2 {[%emt 0:00:42]} f4 {[%emt 0:00:05]} 32. h3 {[%emt 0:02:45]} Bc8 {[%emt 0:00:56]} 33. Nb1 {[%emt 0:04:08]} Bf5 {[%emt 0:00:31]} 34. Nc3 {[%emt 0:04:19]} h5 {[%emt 0:03:57]} 35. Ne4 {[%emt 0:01:24]} Bxe4 {[%emt 0:00:38]} 36. fxe4 {[%emt 0:00:04]} g4 {[%emt 0:00:14]} 37. hxg4 {[%emt 0:03:46]} hxg4 {[%emt 0:01:07]} 38. Ke1 {[%emt 0:01:33]} Rd4 {[%emt 0:00:35]} 39. Kd1 {[%emt 0:00:38]} g3 {[%emt 0:00:58]} 40. Kc1 {[%emt 0:00:52]} b4 {[%emt 0:00:05]} 41. Rd1 {[%emt 0:33:34]} d2+ {[%emt 1:30:26]} 42. Rxd2 {[%emt 0:02:35]} Rxd2 {[%emt 0:00:00]} 43. Kxd2 {[%emt 0:00:46]} f3 {[%emt 0:00:00]} 0-1

[Event "Niedersachsen-ch B 2024"]
[Site "Verden Aller"]
[Date "2024.01.06"]
[Round "5.25"]
[White "Frese, Immo"]
[Black "Middelberg, Simon"]
[Result "1-0"]
[ECO "D02"]
[WhiteElo "1642"]
[BlackElo "1401"]
[Annotator "NA RC"]
[PlyCount "55"]
[EventDate "2024.01.01"]
[EventType "swiss"]
[EventCountry "GER"]
[SourceTitle "playchess.com"]
[Source "ChessBase"]
[SourceQuality "1"]
[TimeControl "40/5400+30:1800+30"]

1. Nf3 {[%emt 0:00:04]} d5 {[%emt 0:00:54]} 2. g3 {[%emt 0:00:38]} Nf6 {[%emt 0:00:37]} 3. d4 {[%emt 0:00:21]} Bf5 {[%emt 0:06:53]} 4. Bg2 {[%emt 0:00:56]} c6 {[%emt 0:00:18]} 5. O-O {[%emt 0:00:35]} e6 {[%emt 0:00:20]} 6. Nbd2 {[%emt 0:02:42]} Bd6 {[%emt 0:00:57]} 7. c4 {[%emt 0:02:18]} Nbd7 {[%emt 0:01:50]} 8. b3 {[%emt 0:03:57]} Qc7 {[%emt 0:02:28]} 9. Bb2 {[%emt 0:06:17]} O-O-O {[%emt 0:01:27]} 10. Ng5 {[%emt 0:04:55]} Bg6 {[%emt 0:04:43]} 11. e4 {[%emt 0:02:48]} dxe4 {[%emt 0:01:28]} 12. Ndxe4 {[%emt 0:03:48]} Nxe4 {[%emt 0:01:40]} 13. Nxe4 {[%emt 0:00:48]} Bxe4 {[%emt 0:03:11]} 14. Bxe4 {[%emt 0:00:03]} Nf6 {[%emt 0:00:25]} 15. Bg2 {[%emt 0:01:47]} h5 {[%emt 0:08:24]} 16. Rc1 {[%emt 0:06:13]} h4 {[%emt 0:03:14]} 17. Qf3 {[%emt 0:03:19]} Rh6 {[%emt 0:20:56]} 18. d5 {[%emt 0:02:59]} c5 {[%emt 0:01:35]} 19. dxe6 {[%emt 0:03:27]} fxe6 {[%emt 0:03:16]} 20. Rfe1 {[%emt 0:05:11]} Nh5 {[%emt 0:04:23]} 21. Rxe6 {[%emt 0:12:21]} Rxe6 {[%emt 0:10:01]} 22. Bh3 {[%emt 0:01:07]} Qd7 {[%emt 0:11:28]} 23. Qxh5 {[%emt 0:07:03]} hxg3 {[%emt 0:03:51]} 24. hxg3 {[%emt 0:02:09]} Rde8 {[%emt 0:03:11]} 25. Bxe6 {[%emt 0:03:36]} Rxe6 {[%emt 0:02:06]} 26. Qd5 {[%emt 0:08:54]} Rh6 {[%emt 0:02:51]} 27. Qg8+ {[%emt 0:00:41]} Kc7 {[%emt 0:00:05]} 28. Qxg7 {[%emt 0:00:28]} 1-0

[Event "Niedersachsen-ch B 2024"]
[Site "Verden Aller"]
[Date "2024.01.06"]
[Round "5.27"]
[White "Fize, Aleksandrs"]
[Black "Pfeifer, Frank"]
[Result "0-1"]
[ECO "A45"]
[WhiteElo "1307"]
[BlackElo "1529"]
[Annotator "NA RC"]
[PlyCount "82"]
[EventDate "2024.01.01"]
[EventType "swiss"]
[EventCountry "GER"]
[SourceTitle "playchess.com"]
[Source "ChessBase"]
[SourceQuality "1"]
[TimeControl "40/5400+30:1800+30"]

1. d4 {[%emt 0:00:03]} Nf6 {[%emt 0:00:01]} 2. Nc3 {[%emt 0:00:07]} d6 {[%emt 0:00:49]} 3. Bf4 {[%emt 0:00:08]} g6 {[%emt 0:00:44]} 4. f3 {[%emt 0:00:22]} Bg7 {[%emt 0:00:15]} 5. Qd2 {[%emt 0:00:08]} Nbd7 {[%emt 0:00:55]} 6. O-O-O {[%emt 0:00:35]} c5 {[%emt 0:00:22]} 7. d5 {[%emt 0:01:11]} a6 {[%emt 0:00:45]} 8. e4 {[%emt 0:00:07]} b5 {[%emt 0:00:23]} 9. g4 {[%emt 0:01:25]} b4 {[%emt 0:00:20]} 10. Nb1 {[%emt 0:00:20]} Nb6 {[%emt 0:00:54]} 11. h4 {[%emt 0:00:41]} Nfd7 {[%emt 0:01:20]} 12. Bh6 {[%emt 0:00:32]} Bd4 {[%emt 0:08:58]} 13. Be3 {[%emt 0:01:33]} Bxe3 {[%emt 0:01:58]} 14. Qxe3 {[%emt 0:01:09]} Ne5 {[%emt 0:00:55]} 15. h5 {[%emt 0:00:44]} Nbc4 {[%emt 0:01:13]} 16. Bxc4 {[%emt 0:00:08]} Nxc4 {[%emt 0:00:28]} 17. Qe2 {[%emt 0:01:00]} Ne5 {[%emt 0:00:56]} 18. hxg6 {[%emt 0:00:42]} Nxg6 {[%emt 0:00:33]} 19. Nh3 {[%emt 0:00:24]} Qa5 {[%emt 0:00:34]} 20. a3 {[%emt 0:01:37]} Bd7 {[%emt 0:00:52]} 21. Ng5 {[%emt 0:00:55]} Bb5 {[%emt 0:00:40]} 22. Qd2 {[%emt 0:00:22]} Ne5 {[%emt 0:02:04]} 23. Rdf1 {[%emt 0:03:39]} Bxf1 {[%emt 0:00:20]} 24. Rxf1 {[%emt 0:00:04]} Qb5 {[%emt 0:01:01]} 25. Rf2 {[%emt 0:00:46]} h6 {[%emt 0:00:36]} 26. Nh3 {[%emt 0:00:52]} Rb8 {[%emt 0:00:31]} 27. b3 {[%emt 0:00:58]} a5 {[%emt 0:00:56]} 28. a4 {[%emt 0:00:30]} Qa6 {[%emt 0:01:01]} 29. Nf4 {[%emt 0:03:03]} c4 {[%emt 0:03:26]} 30. Qd4 {[%emt 0:01:55]} cxb3 {[%emt 0:00:56]} 31. cxb3 {[%emt 0:00:10]} Rc8+ {[%emt 0:02:35]} 32. Kb2 {[%emt 0:00:06]} Kd7 {[%emt 0:02:10]} 33. Qe3 {[%emt 0:01:29]} Rc7 {[%emt 0:01:13]} 34. Qd4 {[%emt 0:00:20]} Rhc8 {[%emt 0:01:43]} 35. Qe3 {[%emt 0:00:14]} Qa7 {[%emt 0:00:28]} 36. Qxa7 {[%emt 0:01:28]} Rxa7 {[%emt 0:00:03]} 37. Ka2 {[%emt 0:00:35]} Rac7 {[%emt 0:00:17]} 38. Kb2 {[%emt 0:00:10]} Rc1 {[%emt 0:02:39]} 39. Ka2 {[%emt 0:00:34]} R1c2+ {[%emt 0:00:10]} 40. Rxc2 {[%emt 0:00:16]} Rxc2+ {[%emt 0:00:18]} 41. Ka1 {[%emt 0:30:02]} Nxf3 {[%emt 0:30:34]} 0-1